[Event "Polish University-ch Open 2024"]
[Site "Lublin"]
[Date "2024.02.24"]
[Round "9.10"]
[White "Smieszek, Wojciech"]
[Black "Chylewski, Patryk"]
[Result "0-1"]
[ECO "C86"]
[WhiteElo "2130"]
[BlackElo "2285"]
[Annotator "TA"]
[PlyCount "92"]
[EventDate "2024.02.22"]
[EventType "swiss"]
[EventCountry "POL"]
[SourceTitle "playchess.com"]
[Source "ChessBase"]
[SourceQuality "1"]
[TimeControl "600+3"]

{[%evp 17,92,-11,0,0,0,-24,0,-6,0,-5,0,0,0,0,0,0,-3,-7,0,-9,-17,-11,-16,-43,-36,-61,-58,-103,-101,-89,-64,-72,-80,-358,-352,-358,-351,-322,-298,-297,-257,-293,-152,-238,-243,-237,-63,-51,-56,-55,-60,-56,-58,-238,-160,-132,-74,-108,-82,-101,-104,-121,-115,-139,-25,-12,0,0,0,0,0,-793,-785,-775,-769,-818,-650]} 1. e4 {[%emt 0:00:02]} e5 {[%emt 0:00:01]} 2. Nf3 {[%emt 0:00:03]} Nc6 {[%emt 0:00:01]} 3. Bb5 {[%emt 0:00:01][%cal Bf1b5,Bb5a4,Ba4b3][%mdl 32]} a6 {[%emt 0:00:02]} 4. Ba4 {[%emt 0:00:02]} Nf6 {[%emt 0:00:01]} 5. Qe2 {[%emt 0:00:01]} b5 {[%emt 0:00:13]} 6. Bb3 {[%emt 0:00:01]} Be7 {[%emt 0:00:08]} 7. O-O {[%emt 0:00:05]} d6 {[%emt 0:00:11]} 8. c3 {[%emt 0:00:03]} O-O {[%emt 0:00:09]} 9. d3 {[%emt 0:00:17]} Na5 {[%emt 0:00:13]} 10. Bc2 {[%emt 0:00:01]} c5 {[%emt 0:00:02]} 11. Bg5 {[%emt 0:00:10]} Nc6 {[%emt 0:00:15]} 12. Re1 {[%emt 0:00:06] The position is equal.} Re8 {[%emt 0:00:05]} 13. Nbd2 {[%emt 0:00:08]} h6 {[%emt 0:00:17]} 14. Bxf6 {[%emt 0:00:08]} Bxf6 {[%emt 0:00:01]} 15. Nf1 {[%emt 0:00:01]} Be6 {[%emt 0:00:20]} 16. Ne3 {[%emt 0:00:12]} Ne7 {[%emt 0:00:06]} 17. Rad1 {[%emt 0:00:36]} Nc6 {[%emt 0:02:42]} (17... Bxa2 $6 18. b3 $16) 18. Nd5 {[%emt 0:01:36]} Bxd5 {[%emt 0:00:14]} 19. exd5 {[%emt 0:00:01]} Ne7 {[%emt 0:00:13]} 20. Qe4 {[%emt 0:00:14] [#] And now d4 would win.} g6 {[%emt 0:00:07]} 21. b4 {[%emt 0:02:04]} Rc8 {[%emt 0:02:29]} 22. bxc5 {[%emt 0:01:25]} Rxc5 {[%emt 0:00:02]} 23. d4 {[%emt 0:00:21]} exd4 {[%emt 0:00:38]} (23... Rxd5 $2 24. Bb3 $18) 24. cxd4 {[%emt 0:00:02]} Rc8 {[%emt 0:00:18][%cal Oe7d5]} (24... Rxd5 25. Bb3 Rf5 26. g4 $16) 25. Ne5 $2 {[%emt 0:00:59][%mdl 8192]} dxe5 {[%emt 0:00:31]} 26. dxe5 {[%emt 0:00:01][%cal Od5d6] [#]} Nf5 {[%emt 0:00:23]} 27. e6 {[%emt 0:01:12]} Qc7 {[%emt 0:00:47]} 28. Bb3 {[%emt 0:00:52][%cal Od5d6]} Nd6 {[%emt 0:00:03]} 29. Qg4 {[%emt 0:00:02]} Bg7 {[%emt 0:00:08]} (29... Kg7 $19 {...Nf5 is the strong threat.} 30. a4 Qb6) 30. h4 {[%emt 0:00:16]} (30. exf7+ $17 {was necessary.} Qxf7 31. Re6) 30... h5 $19 {[%emt 0:00:03]} 31. Qf4 {[%emt 0:00:09] Black must now prevent exf7+.} Re7 {[%emt 0:00:32]} (31... Kh7 $19 {...a5 would now be deadly.} 32. g3 Qe7) 32. Rc1 $15 {[%emt 0:00:02]} Qd8 {[%emt 0:00:11]} 33. Rxc8 {[%emt 0:00:06]} Nxc8 {[%emt 0:00:01]} 34. exf7+ {[%emt 0:00:04]} Kf8 $1 {[%emt 0:00:05]} (34... Rxf7 $2 {perishes.} 35. d6 Nxd6 (35... Qxd6 36. Qxf7+ Kh7 37. Re6 Qd3 38. Re8 Qb1+ 39. Kh2 Kh6 40. Qf4+ Kh7 41. Rxc8) 36. Rd1 $18 (36. Bxf7+ Nxf7 37. g3 Qd5 $17)) 35. Rd1 {[%emt 0:00:13]} (35. Re6 $15) 35... Nd6 {[%emt 0:00:02]} 36. Qg5 {[%emt 0:00:07]} Qd7 {[%emt 0:00:06]} ({Better is} 36... Rd7 {Strongly threatening ...Qxg5.} 37. Qxg6 Qxh4) 37. Qxg6 $17 {[%emt 0:00:04]} Rxf7 {[%emt 0:00:02]} 38. Re1 {[%emt 0:00:02]} Qd8 {[%emt 0:00:10]} 39. Qxh5 {[%emt 0:00:02]} Qf6 $36 {[%emt 0:00:03][%mdl 2048] Keeping White busy.} 40. Qe2 {[%emt 0:00:04]} Kg8 {[%emt 0:00:02] White is weak on the dark squares} ({Black should play} 40... Qxh4 $17 {( -> ...Bd4)} 41. g3 Qf6) 41. g3 $11 {[%emt 0:00:02]} Qf5 {[%emt 0:00:03] aiming for ...Bd4.} 42. Bc2 {[%emt 0:00:02]} Qf6 {[%emt 0:00:03]} 43. f4 {[%emt 0:00:02]} Qd4+ {[%emt 0:00:02]} 44. Qe3 $2 {[%emt 0:00:02][%mdl 8192]} (44. Kh2 $11) 44... Qxe3+ $19 {[%emt 0:00:04] Black is clearly winning.} (44... Qxd5 45. Bb3 Nc4 46. Qe8+ Bf8 47. Re6 $17) 45. Rxe3 {[%emt 0:00:01]} Bd4 {[%emt 0:00:01]} 46. Kf2 {[%emt 0:00:01]} Nc4 {[%emt 0:00:01] Weighted Error Value: White=0.44/Black=0.27 (precise) .  Loses game:     	White=3     	---        Missed win:     	---       	Black=1      Mistake:       	White=1     	Black=3      Inaccurate:     	White=2     	Black=1      OK:         	White=12    	Black=12     Best:        	White=4     	---        Strong:       	---       	Black=1} 0-1

[Event "Polish University-ch Open 2024"]
[Site "Lublin"]
[Date "2024.02.24"]
[Round "9.11"]
[White "Pniaczek, Marek"]
[Black "Hrymowicz, Artur"]
[Result "1-0"]
[ECO "B51"]
[WhiteElo "2116"]
[BlackElo "2131"]
[Annotator "ChessBase"]
[PlyCount "65"]
[EventDate "2024.02.22"]
[EventType "swiss"]
[EventCountry "POL"]
[SourceTitle "playchess.com"]
[Source "ChessBase"]
[SourceQuality "1"]
[TimeControl "600+3"]

1. e4 {[%emt 0:00:01]} c5 {[%emt 0:00:02]} 2. Nf3 {[%emt 0:00:01]} d6 {[%emt 0:00:01]} 3. Bb5+ {[%emt 0:00:02]} Nd7 {[%emt 0:00:01]} 4. O-O {[%emt 0:00:03]} a6 {[%emt 0:00:00]} 5. Bd3 {[%emt 0:00:02]} Ngf6 {[%emt 0:00:06]} 6. c3 {[%emt 0:00:15]} e6 {[%emt 0:00:39]} 7. Re1 {[%emt 0:00:10]} Be7 {[%emt 0:00:02]} 8. Bc2 {[%emt 0:00:05]} O-O {[%emt 0:00:08]} 9. d4 {[%emt 0:00:01]} b5 {[%emt 0:00:52]} 10. a4 {[%emt 0:00:07]} Bb7 {[%emt 0:00:17]} 11. e5 {[%emt 0:01:46]} Nd5 {[%emt 0:01:40]} 12. axb5 {[%emt 0:00:02]} axb5 {[%emt 0:00:01]} 13. Rxa8 {[%emt 0:00:01]} Qxa8 {[%emt 0:01:09]} 14. Qd3 {[%emt 0:00:02]} g6 {[%emt 0:00:17]} 15. Qxb5 {[%emt 0:00:01]} Bc6 {[%emt 0:00:19]} 16. Qe2 {[%emt 0:00:06]} cxd4 {[%emt 0:00:28]} 17. exd6 {[%emt 0:00:11]} Bxd6 {[%emt 0:00:57]} 18. Nxd4 {[%emt 0:00:01]} Nf4 {[%emt 0:01:42]} 19. Bxf4 {[%emt 0:00:06]} Bxf4 {[%emt 0:00:05]} 20. Nxc6 {[%emt 0:00:45]} Qxc6 {[%emt 0:00:01]} 21. g3 {[%emt 0:00:12]} Bh6 {[%emt 0:00:06]} 22. Be4 {[%emt 0:00:23]} Qc7 {[%emt 0:00:26]} 23. Nd2 {[%emt 0:00:21]} Nc5 {[%emt 0:00:08]} 24. Bg2 {[%emt 0:00:11]} Rd8 {[%emt 0:00:22]} 25. Nf3 {[%emt 0:00:35]} Bg7 {[%emt 0:00:09]} 26. Qc4 {[%emt 0:00:24]} Qb6 {[%emt 0:00:14]} 27. Nd4 {[%emt 0:01:25]} e5 {[%emt 0:00:49]} 28. Nc6 {[%emt 0:00:18]} Re8 {[%emt 0:00:21]} 29. b4 {[%emt 0:00:10]} Nd7 {[%emt 0:00:03]} 30. Bd5 {[%emt 0:00:10]} Rf8 {[%emt 0:00:03]} 31. Rd1 {[%emt 0:00:21]} Nf6 {[%emt 0:00:03]} 32. Bxf7+ {[%emt 0:00:31]} Kh8 {[%emt 0:00:04]} 33. Nxe5 {[%emt 0:00:21]} 1-0

[Event "Polish University-ch Open 2024"]
[Site "Lublin"]
[Date "2024.02.24"]
[Round "9.12"]
[White "Golenia, Jan"]
[Black "Kulesza, Andrzej"]
[Result "0-1"]
[ECO "E80"]
[WhiteElo "2221"]
[BlackElo "2076"]
[Annotator "ChessBase"]
[PlyCount "130"]
[EventDate "2024.02.22"]
[EventType "swiss"]
[EventCountry "POL"]
[SourceTitle "playchess.com"]
[Source "ChessBase"]
[SourceQuality "1"]
[TimeControl "600+3"]

1. d4 {[%emt 0:00:02]} Nf6 {[%emt 0:00:01]} 2. c4 {[%emt 0:00:02]} g6 {[%emt 0:00:05]} 3. Nc3 {[%emt 0:00:02]} Bg7 {[%emt 0:00:01]} 4. e4 {[%emt 0:00:01]} d6 {[%emt 0:00:01]} 5. f3 {[%emt 0:00:02]} c6 {[%emt 0:00:10]} 6. Nge2 {[%emt 0:00:03]} Nbd7 {[%emt 0:00:07]} 7. Bg5 {[%emt 0:00:04]} O-O {[%emt 0:00:17]} 8. Qd2 {[%emt 0:00:02]} Re8 {[%emt 0:00:01]} 9. Be3 {[%emt 0:02:34]} e5 {[%emt 0:00:03]} 10. d5 {[%emt 0:00:01]} Qc7 {[%emt 0:00:21]} 11. g4 {[%emt 0:00:43]} a6 {[%emt 0:00:09]} 12. Ng3 {[%emt 0:00:16]} Rb8 {[%emt 0:00:48]} 13. h4 {[%emt 0:01:27]} b5 {[%emt 0:00:33]} 14. h5 {[%emt 0:00:10]} bxc4 {[%emt 0:00:59]} 15. g5 {[%emt 0:00:07]} Nxh5 {[%emt 0:00:02]} 16. Nxh5 {[%emt 0:00:01]} gxh5 {[%emt 0:00:01]} 17. Bxc4 {[%emt 0:00:20]} cxd5 {[%emt 0:00:10]} 18. Bxd5 {[%emt 0:00:05]} Nf8 {[%emt 0:00:05]} 19. Rxh5 {[%emt 0:01:01]} Be6 {[%emt 0:00:02]} 20. Kf2 {[%emt 0:00:51]} Rec8 {[%emt 0:00:14]} 21. Bxe6 {[%emt 0:00:29]} fxe6 {[%emt 0:00:02]} 22. Rd1 {[%emt 0:00:12]} Rd8 {[%emt 0:00:24]} 23. b3 {[%emt 0:00:34]} Qf7 {[%emt 0:00:18]} 24. Rh3 {[%emt 0:00:45]} Rd7 {[%emt 0:00:02]} 25. Qd3 {[%emt 0:00:35]} d5 {[%emt 0:00:54]} 26. Bc1 {[%emt 0:00:24]} Rc8 {[%emt 0:00:34]} 27. Rhh1 {[%emt 0:00:15]} Ng6 {[%emt 0:01:51]} 28. Bd2 {[%emt 0:00:14]} dxe4 {[%emt 0:00:29]} 29. Qxe4 {[%emt 0:00:01]} Rxd2+ {[%emt 0:00:07]} 30. Rxd2 {[%emt 0:00:01]} Rxc3 {[%emt 0:00:01]} 31. Rd8+ {[%emt 0:00:06]} Bf8 {[%emt 0:00:02]} 32. Rhd1 {[%emt 0:00:03]} Qa7+ {[%emt 0:00:34]} 33. Kg3 {[%emt 0:00:02]} Qe7 {[%emt 0:00:01]} 34. R1d7 {[%emt 0:00:05]} Qxg5+ {[%emt 0:00:01]} 35. Kf2 {[%emt 0:00:01]} Rc1 {[%emt 0:00:09]} 36. Rd1 {[%emt 0:00:02]} Rxd1 {[%emt 0:00:07]} 37. Rxd1 {[%emt 0:00:01]} Bc5+ {[%emt 0:00:01]} 38. Ke2 {[%emt 0:00:03]} Nf4+ {[%emt 0:00:13]} 39. Kd2 {[%emt 0:00:02]} Nd5+ {[%emt 0:00:11]} 40. Kd3 {[%emt 0:00:00]} Nb4+ {[%emt 0:00:10]} 41. Kc4 {[%emt 0:00:02]} Bf8 {[%emt 0:00:08]} 42. a3 {[%emt 0:00:04]} Nd5 {[%emt 0:00:05]} 43. Re1 {[%emt 0:00:11]} Bd6 {[%emt 0:00:24]} 44. b4 {[%emt 0:00:03]} Qg2 {[%emt 0:00:27]} 45. Kb3 {[%emt 0:00:03]} h5 {[%emt 0:00:19]} 46. Rc1 {[%emt 0:00:03]} Kg7 {[%emt 0:00:10]} 47. Rc2 {[%emt 0:00:00]} Qg6 {[%emt 0:00:06]} 48. Qh4 {[%emt 0:00:06]} Be7 {[%emt 0:00:06]} 49. Qh3 {[%emt 0:00:01]} Qd3+ {[%emt 0:00:02]} 50. Kb2 {[%emt 0:00:01]} Qf5 {[%emt 0:00:08]} 51. Rg2+ {[%emt 0:00:04]} Kf7 {[%emt 0:00:02]} 52. Qg3 {[%emt 0:00:01]} Bf6 {[%emt 0:00:04]} 53. Qg8+ {[%emt 0:00:01]} Ke7 {[%emt 0:00:20]} 54. Qa8 e4+ {[%emt 0:00:00]} 55. Ka2 {[%emt 0:00:08]} Qxf3 {[%emt 0:00:00]} 56. Qb7+ {[%emt 0:00:01]} Kd6 {[%emt 0:00:00]} 57. Qxa6+ {[%emt 0:00:01]} Ke5 {[%emt 0:00:00]} 58. Rc2 {[%emt 0:00:05]} Qd1 {[%emt 0:00:00]} 59. Qc4 {[%emt 0:00:06]} Kf5 {[%emt 0:00:00]} 60. Rf2+ {[%emt 0:00:02]} Nf4 {[%emt 0:00:00]} 61. Qc7 {[%emt 0:00:08]} Qa1+ {[%emt 0:00:00]} 62. Kb3 {[%emt 0:00:01]} Qb1+ {[%emt 0:00:00]} 63. Ka4 {[%emt 0:00:00]} Qd1+ {[%emt 0:00:00]} 64. Ka5 {[%emt 0:00:03]} Bd8 {[%emt 0:00:00]} 65. Rxf4+ {[%emt 0:00:02]} Kg5 {[%emt 0:00:00]} 0-1

[Event "Polish University-ch Open 2024"]
[Site "Lublin"]
[Date "2024.02.24"]
[Round "9.13"]
[White "Musial, Tomasz"]
[Black "Jarzebowski, Kacper"]
[Result "1-0"]
[ECO "C45"]
[WhiteElo "2171"]
[BlackElo "2135"]
[Annotator "RC"]
[PlyCount "61"]
[EventDate "2024.02.22"]
[EventType "swiss"]
[EventCountry "POL"]
[SourceTitle "playchess.com"]
[Source "ChessBase"]
[SourceQuality "1"]
[TimeControl "600+3"]

1. e4 {[%emt 0:00:01]} e5 {[%emt 0:00:01]} 2. Nf3 {[%emt 0:00:02]} Nc6 {[%emt 0:00:00]} 3. d4 {[%emt 0:00:01]} exd4 {[%emt 0:00:03]} 4. Nxd4 {[%emt 0:00:10]} Nf6 {[%emt 0:00:09]} 5. Nxc6 {[%emt 0:00:02]} bxc6 {[%emt 0:00:09]} 6. Bd3 {[%emt 0:00:02]} d5 {[%emt 0:00:30]} 7. exd5 {[%emt 0:00:03]} cxd5 {[%emt 0:00:02]} 8. O-O {[%emt 0:00:03]} Be7 {[%emt 0:00:05]} 9. c4 {[%emt 0:00:03]} d4 {[%emt 0:00:26]} 10. b4 {[%emt 0:00:02]} O-O {[%emt 0:00:05]} 11. b5 {[%emt 0:00:05]} Bb7 {[%emt 0:00:42]} 12. a4 {[%emt 0:00:18]} a6 {[%emt 0:00:03]} 13. Bb2 {[%emt 0:00:48]} axb5 {[%emt 0:00:02]} 14. cxb5 {[%emt 0:00:08]} Qd5 {[%emt 0:00:17]} 15. f3 {[%emt 0:00:05]} Rfd8 {[%emt 0:00:05]} 16. Nd2 {[%emt 0:00:08]} c5 {[%emt 0:00:10]} 17. Nc4 {[%emt 0:00:18]} Qg5 {[%emt 0:00:36]} 18. a5 {[%emt 0:00:20]} Nd5 {[%emt 0:00:20]} 19. Bc1 {[%emt 0:01:14]} Qh4 {[%emt 0:02:45]} 20. a6 {[%emt 0:00:28]} Bc8 {[%emt 0:00:34]} 21. Qe1 {[%emt 0:00:33]} Qf6 {[%emt 0:00:43]} 22. Qe4 {[%emt 0:00:14]} g6 {[%emt 0:00:28]} 23. Qe5 {[%emt 0:00:18]} Nc3 {[%emt 0:01:47]} 24. Qxf6 {[%emt 0:00:15]} Bxf6 {[%emt 0:00:01]} 25. Nb6 {[%emt 0:00:07]} Rb8 {[%emt 0:01:06]} 26. a7 {[%emt 0:00:10]} Rxb6 {[%emt 0:00:07]} 27. a8=Q {[%emt 0:00:04]} c4 {[%emt 0:00:02]} 28. Bxc4 {[%emt 0:00:14]} Be6 {[%emt 0:00:04]} 29. Qa5 {[%emt 0:00:35]} Bxc4 {[%emt 0:00:03]} 30. Qxb6 {[%emt 0:00:04]} d3 {[%emt 0:00:08]} 31. Qxf6 {[%emt 0:00:03]} 1-0

[Event "Polish University-ch Open 2024"]
[Site "Lublin"]
[Date "2024.02.24"]
[Round "9.14"]
[White "Redzisz, Michal"]
[Black "Babiarz, Arkadiusz"]
[Result "0-1"]
[ECO "B41"]
[WhiteElo "2229"]
[BlackElo "2159"]
[Annotator "TA"]
[PlyCount "78"]
[EventDate "2024.02.22"]
[EventType "swiss"]
[EventCountry "POL"]
[SourceTitle "playchess.com"]
[Source "ChessBase"]
[SourceQuality "1"]
[TimeControl "600+3"]

{[%evp 14,78,54,22,31,33,72,49,52,59,54,20,18,16,14,0,5,16,10,0,0,0,0,0,0,0,9,8,28,-3,39,-4,0,-29,4,0,29,-69,-85,-80,-88,-89,-91,-116,-114,-304,-135,-429,-363,-382,-216,-309,-195,-880,-862,-782,-587,-2525,-876,-866,-863,-1056,-1047,-29986,-5385,-29987,-29988]} 1. e4 {[%emt 0:00:01]} c5 {[%emt 0:00:00]} 2. Nf3 {[%emt 0:00:02]} e6 {[%emt 0:00:01]} 3. d4 {[%emt 0:00:09]} cxd4 {[%emt 0:00:01]} 4. Nxd4 {[%emt 0:00:01]} a6 {[%emt 0:00:01]} 5. c4 {[%emt 0:00:06]} Nf6 {[%emt 0:00:04]} 6. Nc3 {[%emt 0:00:05]} Qc7 {[%emt 0:00:03]} 7. a3 {[%emt 0:00:27]} b6 {[%emt 0:00:03]} 8. Bd3 {[%emt 0:00:22]} Bb7 {[%emt 0:00:05]} 9. O-O {[%emt 0:00:12]} d6 {[%emt 0:00:04]} 10. Be3 {[%emt 0:00:12]} Nbd7 {[%emt 0:00:04][%cal Bb8d7,Bd7e5,Be5d3][%mdl 32] White is slightly better.} 11. f3 {[%emt 0:00:36]} Ne5 {[%emt 0:00:10][%cal Oe5d3]} 12. Rc1 {[%emt 0:00:11]} Nxd3 {[%emt 0:00:09]} 13. Qxd3 {[%emt 0:00:01]} Be7 {[%emt 0:00:03]} 14. b4 {[%emt 0:00:19]} Rc8 {[%emt 0:00:02]} 15. Na4 {[%emt 0:00:25][%cal Oa4b6] Threatening Nxb6!} Nd7 {[%emt 0:00:11]} 16. Nb3 {[%emt 0:00:43]} O-O {[%emt 0:00:13]} 17. Qe2 {[%emt 0:00:20]} Bc6 {[%emt 0:00:48]} 18. Nb2 {[%emt 0:00:39]} Qb8 {[%emt 0:00:03]} 19. Rfd1 {[%emt 0:00:17]} Bd8 {[%emt 0:00:21]} 20. Bf4 {[%emt 0:01:30]} Bc7 {[%emt 0:00:01]} 21. Qd2 {[%emt 0:00:36][%cal Rf4d6]} Ne5 {[%emt 0:00:15][%cal Od6d5]} 22. Bxe5 {[%emt 0:00:45]} dxe5 {[%emt 0:00:02]} 23. c5 {[%emt 0:00:07]} f5 {[%emt 0:00:06]} 24. Qe2 {[%emt 0:00:49]} Qa8 {[%emt 0:00:11][%cal Rf5e4]} 25. cxb6 {[%emt 0:00:16]} (25. exf5 $11 Bd5 26. Nd2 exf5 (26... Rxf5 27. Nd3 $14) 27. Nbc4) 25... Bxb6+ $15 {[%emt 0:00:01]} 26. Nc5 {[%emt 0:00:01]} fxe4 {[%emt 0:00:11]} 27. fxe4 {[%emt 0:00:00]} Bxe4 {[%emt 0:00:06]} 28. Nba4 {[%emt 0:00:33]} Ba7 {[%emt 0:00:15]} 29. Qg4 $2 {[%emt 0:00:50] [#]} (29. Kh1 $17 Bc6 30. Nb2) 29... Bd5 {[%emt 0:00:37] A strong pair of Bishops.} (29... Rf6 $19 {is more deadly.} 30. Rd2 Qc6) 30. Rd2 $2 {[%emt 0:00:15][%mdl 8192] Now White is beyond hope.} (30. Nc3 $17) 30... Rf4 {[%emt 0:00:03]} 31. Qg5 {[%emt 0:00:06]} Rf5 {[%emt 0:00:30]} (31... Qc6 $142 32. Nb2 Qxc5+ 33. bxc5 Rxc5 34. Qd8+ Rf8 35. Qxf8+ Kxf8 36. Rxc5 Bxc5+ 37. Kf1 Bxa3 38. Rf2+ Ke7) 32. Qe7 {[%emt 0:00:09]} (32. Qe3 $142) 32... Rcf8 $40 {[%emt 0:00:07][%mdl 128] Black is out for blood.} 33. Rcd1 $2 {[%emt 0:00:14]} (33. Nc3) 33... R5f7 $19 {[%emt 0:00:35]} 34. Qd6 {[%emt 0:00:01]} Bb3 {[%emt 0:00:01]} 35. Qxe5 {[%emt 0:00:11]} Bxa4 {[%emt 0:00:30]} (35... Bxd1 $142 36. Rxd1 Qc6) 36. Re1 {[%emt 0:00:00]} Bb3 {[%emt 0:00:01]} 37. h3 {[%emt 0:00:02]} Bd5 {[%emt 0:00:20] [#] Hoping for ...Qc6.} 38. Re3 {[%emt 0:00:10]} Rf1+ {[%emt 0:00:05]} 39. Kh2 {[%emt 0:00:01]} Bb8 {[%emt 0:00:00] Weighted Error Value: White=1.01/Black=0.53.  Loses game:     	White=2     	---        Missed win:     	---       	Black=1      Mistake:       	White=3     	Black=1      Inaccurate:     	White=4     	Black=5      OK:         	White=5     	Black=9      Best:        	White=1     	Black=1} 0-1

[Event "Polish University-ch Open 2024"]
[Site "Lublin"]
[Date "2024.02.24"]
[Round "9.15"]
[White "Lis, Mateusz"]
[Black "Molenda, Marcin"]
[Result "1/2-1/2"]
[ECO "B33"]
[WhiteElo "2019"]
[BlackElo "2377"]
[Annotator "TA"]
[PlyCount "48"]
[EventDate "2024.02.22"]
[EventType "swiss"]
[EventCountry "POL"]
[SourceTitle "playchess.com"]
[Source "ChessBase"]
[SourceQuality "1"]
[TimeControl "600+3"]

{[%evp 24,48,14,6,12,4,15,0,0,0,0,0,0,-8,-6,-24,-8,-20,-20,-72,-73,-65,-55,-67,-25,-871,0]} 1. e4 {[%emt 0:00:01]} c5 {[%emt 0:00:02]} 2. Nf3 {[%emt 0:00:02][%cal Bg1f3,Bf3d4,Bd4b5,Bb5a3,Ba3c2][%mdl 32]} Nc6 {[%emt 0:00:00]} 3. d4 {[%emt 0:00:01]} cxd4 {[%emt 0:00:02]} 4. Nxd4 {[%emt 0:00:01]} Nf6 {[%emt 0:00:01]} 5. Nc3 {[%emt 0:00:01]} e5 {[%emt 0:00:01]} 6. Ndb5 {[%emt 0:00:01]} d6 {[%emt 0:00:00]} 7. Bg5 {[%emt 0:00:05]} a6 {[%emt 0:00:01]} 8. Na3 {[%emt 0:00:01]} b5 {[%emt 0:00:01][%cal Bb7b5,Bb5b4][%mdl 32]} 9. Nd5 {[%emt 0:00:01]} Be7 {[%emt 0:00:01]} 10. Bxf6 {[%emt 0:00:01]} Bxf6 {[%emt 0:00:01]} 11. c4 {[%emt 0:00:08]} b4 {[%emt 0:00:16]} 12. Nc2 {[%emt 0:00:02]} a5 {[%emt 0:00:00]} 13. Be2 {[%emt 0:00:22]} O-O {[%emt 0:00:08]} 14. O-O {[%emt 0:00:02]} Bg5 {[%emt 0:00:02]} 15. Bg4 {[%emt 0:00:12]} Be6 {[%emt 0:00:06] The position is equal.} 16. g3 {[%emt 0:00:47]} Bh6 {[%emt 0:01:43]} 17. b3 {[%emt 0:00:15]} g6 {[%emt 0:00:16]} 18. Bxe6 {[%emt 0:01:18]} fxe6 {[%emt 0:00:01]} 19. Nde3 {[%emt 0:00:02]} (19. Qd3 $5) 19... Bxe3 {[%emt 0:00:34]} 20. fxe3 {[%emt 0:00:15]} Qe7 {[%emt 0:00:06]} 21. Qg4 {[%emt 0:00:15]} (21. Qd2 $11 {remains equal.}) 21... Rae8 $17 {[%emt 0:00:09]} 22. Rxf8+ {[%emt 0:00:10]} Rxf8 {[%emt 0:00:01]} 23. Rf1 {[%emt 0:00:02][%cal Oc4c5]} Rf7 {[%emt 0:07:40]} 24. Rf4 $2 {[%mdl 8192] [#]} Rxf4 $2 {[%emt 0:00:00] Weighted Error Value: White=0.62/Black=0.06 (flawless) .  Loses game:     	White=1     	---        Missed win:     	---       	Black=1      Mistake:       	White=1     	---        Inaccurate:     	---       	Black=1      OK:         	White=4     	Black=4} ({Black should try} 24... exf4 $19 25. exf4 Qf6) 1/2-1/2